bitfinex/quotes_SOLUSD_20241016
["timestamp","ask_amount","ask_price","bid_price","bid_amount"]
[1729093545573,6.4226,155.7,155.65,6.4243]
[1729093545764,6.4231,155.69,155.65,6.4243]
[1729093549382,16.3886,155.73,155.63,20.0]
[1729093549581,6.4235,155.68,155.64,16.0621]
[1729093550090,6.4235,155.68,155.64,22.4871]
[1729093550883,6.4247,155.65,155.6,6.4266]
[1729093551062,6.4243,155.66,155.61,6.4262]
[1729093551390,6.4243,155.66,155.62,6.4259]
[1729093551884,6.4243,155.66,155.61,6.4261]
[1729093552282,6.4247,155.65,155.61,6.4261]
[1729093553990,6.4242,155.67,155.63,6.4254]
[1729093555766,6.4231,155.69,155.65,6.4246]
[1729093555964,16.0551,155.72,155.62,16.0643]
[1729093556181,6.4237,155.68,155.64,6.4249]
[1729093556868,6.4231,155.69,155.64,6.4249]
[1729093561086,16.3886,155.73,155.66,16.0603]
[1729093561271,6.4213,155.74,155.69,6.4227]
[1729093561471,6.4213,155.74,155.67,23.776884]
[1729093561472,6.4217,155.73,155.68,22.4813]
[1729093565297,6.4218,155.72,155.68,22.4813]
[1729093565672,6.4222,155.71,155.68,16.058]
[1729093566107,6.4222,155.71,155.67,30.200584]
[1729093566108,6.4222,155.71,155.67,6.4237]
[1729093566308,16.053,155.74,155.66,6.4238]
[1729093566592,16.332,155.77,155.67,23.776884]
[1729093566810,4.7820734,155.76,155.68,6.4232]
[1729093566990,6.4219,155.72,155.67,46.259384]
[1729093567300,16.0515,155.75,155.63,24.7580974]
[1729093567488,6.4231,155.69,155.65,30.201484]
[1729093568092,6.4235,155.68,155.64,22.4869]
[1729093569610,16.0538,155.73,155.64,16.0619]
[1729093569918,15.369,155.71,155.61,16.065]
[1729093570100,6.4249,155.65,155.61,16.065]
[1729093570718,6.4249,155.65,155.61,22.4912]
[1729093572913,6.4251,155.64,155.61,16.065]
[1729093573096,6.4268,155.6,155.53,54.7578]
[1729093573307,6.4268,155.6,155.55,16.0714]
[1729093573604,6.4272,155.59,155.55,16.0714]
[1729093573997,6.4277,155.58,155.54,6.4288]
[1729093574514,6.4279,155.57,155.53,6.4295]
[1729093574713,6.4284,155.56,155.52,22.5045]
[1729093575089,0.1,155.63,155.49,21.5115]
[1729093575385,6.4295,155.54,155.49,22.509]
[1729093575811,6.4296,155.53,155.49,22.509]
[1729093576014,15.9461,155.58,155.45,21.3165]
[1729093576197,6.4304,155.51,155.46,6.4321]
[1729093576413,16.1707,155.57,155.45,37.3978]
[1729093576414,6.4297,155.53,155.48,6.4316]
[1729093576830,15.9461,155.58,155.45,37.3978]
[1729093577139,6.4304,155.52,155.46,6.4323]
[1729093577304,6.4313,155.49,155.45,16.0813]
[1729093577506,6.4313,155.49,155.44,6.4333]
[1729093578606,16.273,155.55,155.44,6.4333]
[1729093579012,6.4316,155.49,155.44,6.4333]
[1729093579917,6.4316,155.49,155.43,6.4336]
[1729093581441,6.4321,155.47,155.42,22.519]
[1729093583129,6.433,155.45,155.4,6.435]
[1729093583834,21.77024399,155.5,155.41,6.4344]
[1729093583835,6.4325,155.46,155.41,6.4344]
[1729093584130,6.4316,155.49,155.44,6.4332]
[1729093584438,6.4317,155.48,155.43,6.4336]
[1729093585012,23.776884,155.49,155.39,16.7086612]
[1729093585212,6.4335,155.44,155.39,23.1437612]
[1729093585721,39.955884,155.49,155.39,16.7086612]
[1729093585722,6.434,155.43,155.39,16.7086612]
[1729093586239,6.434,155.43,155.39,23.1440612]
[1729093586410,6.4333,155.45,155.4,6.4348]
[1729093587016,6.4325,155.46,155.41,6.4342]
[1729093587425,6.4321,155.47,155.42,6.4338]
[1729093587631,6.4321,155.47,155.41,16.0858]
[1729093587837,6.4321,155.47,155.42,6.4341]
[1729093588820,6.4328,155.46,155.41,16.0858]
[1729093589013,6.4328,155.46,155.42,6.4341]
[1729093590139,15.0707,155.5,155.42,6.4341]
[1729093590431,6.4328,155.46,155.41,22.5202]
[1729093591517,6.433,155.45,155.41,16.0858]
[1729093591737,6.4338,155.43,155.39,0.6205612]
[1729093593015,6.4338,155.43,155.39,7.0558612]
[1729093593240,16.0798,155.48,155.39,0.6205612]
[1729093593241,6.4349,155.41,155.39,0.6205612]
[1729093594015,6.4342,155.42,155.39,0.6205612]
[1729093594249,6.435,155.4,155.39,0.6205612]
[1729093596322,6.4346,155.41,155.39,0.6205612]
[1729093597439,0.1,155.42,155.39,0.6205612]
[1729093597741,6.435,155.4,155.39,0.6205612]
[1729093597917,30.311884,155.4,155.39,0.6205612]
[1729093599024,30.211884,155.4,155.39,0.6205612]
[1729093599222,30.311884,155.4,155.39,0.6205612]
[1729093599431,30.211884,155.4,155.39,0.6205612]
[1729093599719,6.435,155.4,155.39,0.6205612]
[1729093604150,30.211884,155.4,155.39,0.6205612]
[1729093604362,30.211884,155.4,155.3,22.5363]
[1729093604363,6.4376,155.34,155.3,22.5363]
[1729093604654,6.4376,155.34,155.3,16.0972]
[1729093605242,6.4378,155.34,155.28,22.6184]
[1729093605623,6.4378,155.34,155.29,6.4395]
[1729093606152,16.088,155.4,155.3,16.0973]
[1729093606324,6.4368,155.36,155.32,6.438]
[1729093606529,6.4372,155.35,155.31,6.4384]
[1729093606844,6.4367,155.36,155.32,6.4382]
[1729093607354,6.4363,155.37,155.32,6.4382]
[1729093608261,16.09,155.38,155.3,16.0973]
[1729093608437,6.4394,155.3,155.24,22.5449]
[1729093608633,6.4394,155.3,155.25,6.4411]
[1729093609960,6.4396,155.29,155.24,22.5449]
[1729093610427,6.4391,155.3,155.26,6.4407]
[1729093610631,15.1919,155.33,155.22,21.8751]
[1729093610828,6.4384,155.32,155.28,6.4399]
[1729093611161,15.1919,155.33,155.26,16.1015]
[1729093611452,6.4392,155.3,155.26,16.1015]
[1729093611963,15.1919,155.33,155.22,21.8751]
[1729093612130,6.4396,155.29,155.23,16.7251612]
[1729093612329,6.4396,155.29,155.25,6.441]
[1729093612849,6.4392,155.3,155.25,6.441]
[1729093614055,6.4396,155.29,155.24,6.4416]
[1729093614229,6.4396,155.29,155.25,6.4411]
[1729093615140,6.4411,155.26,155.23,0.6205612]
[1729093615345,6.4412,155.26,155.23,0.6205612]
[1729093615544,15.1919,155.33,155.23,0.6205612]
[1729093615767,15.1919,155.33,155.24,16.1035]
[1729093616135,6.4394,155.3,155.25,6.4411]
[1729093616341,6.4396,155.29,155.25,6.4411]
[1729093617037,6.4396,155.29,155.24,22.545]
[1729093618145,16.0968,155.31,155.23,0.6205612]
[1729093618343,21.87464594,155.33,155.23,0.6205612]
[1729093618344,6.4416,155.24,155.23,0.6205612]
[1729093619243,32.3965,155.3,155.23,0.6205612]
[1729093619564,6.4416,155.24,155.23,0.6205612]
[1729093619941,6.4416,155.25,155.23,0.6205612]
[1729093620160,6.4416,155.24,155.23,0.6205612]
[1729093620457,16.0984,155.3,155.23,0.6205612]
[1729093620962,6.4411,155.26,155.23,0.6205612]
[1729093622064,16.0984,155.3,155.23,0.6205612]
[1729093622244,6.4416,155.24,155.23,0.6205612]
[1729093623964,30.218484,155.24,155.23,0.6205612]
[1729093626561,0.1,155.22,155.1,6.2664]
[1729093626762,45.904884,155.24,155.11,6.4469]
[1729093626763,6.4454,155.15,155.11,6.4469]
[1729093626975,0.1,155.23,155.1,6.2664]
[1729093627177,6.4438,155.19,155.14,6.4457]
[1729093627745,62.209484,155.24,155.12,24.7580974]
[1729093627746,38.2326,155.24,155.12,24.7580974]
[1729093627950,6.4429,155.21,155.16,6.4448]
[1729093628546,38.2326,155.24,155.15,16.1129]
[1729093628888,6.4429,155.21,155.17,6.4444]
[1729093630362,6.4424,155.23,155.18,6.4441]
[1729093630560,6.68746137,155.27,155.16,24.7580974]
[1729093630764,6.4409,155.26,155.21,6.4425]
[1729093631078,6.4409,155.26,155.21,6.4427]
[1729093631762,6.4406,155.27,155.22,6.4421]
[1729093631953,15.9451,155.28,155.22,6.4421]
[1729093632754,6.4414,155.25,155.2,22.5512]
[1729093632950,6.4412,155.25,155.2,16.1081]
[1729093633170,32.0458,155.28,155.2,16.1081]
[1729093633358,6.4423,155.23,155.18,6.444]
[1729093633560,6.4417,155.24,155.19,6.4435]
[1729093633869,6.4417,155.24,155.2,6.4431]
[1729093634465,6.4417,155.24,155.19,22.5523]
[1729093635956,6.4413,155.25,155.21,6.4428]
[1729093636379,6.4408,155.26,155.22,6.4422]
[1729093636560,6.4408,155.26,155.21,16.1065]
[1729093636762,6.4407,155.27,155.21,22.5492]
[1729093636960,6.4408,155.26,155.21,16.1065]
[1729093641473,6.4421,155.23,155.18,46.330384]
[1729093642157,16.1013,155.27,155.18,39.886384]
[1729093642485,6.4438,155.19,155.14,22.0163]
[1729093642662,6.4438,155.19,155.14,15.5706]
[1729093642862,6.4438,155.19,155.14,22.0162]
[1729093643181,6.4436,155.2,155.14,15.5706]
[1729093643372,16.1035,155.25,155.14,15.5706]
[1729093643694,6.4437,155.19,155.14,22.0161]
[1729093643978,6.4437,155.19,155.15,23.776884]
[1729093644384,6.4437,155.19,155.15,30.222184]
[1729093644556,62.76410627,155.27,155.14,15.5706]
[1729093644886,6.4437,155.19,155.15,30.222184]
[1729093645485,6.4437,155.19,155.14,22.0162]
[1729093646185,6.4441,155.18,155.14,22.0162]
[1729093646881,6.4446,155.17,155.14,15.5706]
[1729093647610,6.4441,155.18,155.14,22.0163]
[1729093647889,6.4446,155.17,155.14,15.5706]
[1729093649163,16.1044,155.24,155.15,39.889884]
[1729093649483,6.4425,155.22,155.17,6.4441]
[1729093649686,16.1033,155.25,155.17,22.5549]
[1729093649860,6.4429,155.21,155.17,22.5549]
[1729093651694,6.4424,155.23,155.18,6.444]
[1729093652179,6.4424,155.23,155.17,16.1108]
[1729093652385,6.4424,155.23,155.19,6.4436]
[1729093653090,32.0456,155.28,155.16,24.7580974]
[1729093653280,6.4416,155.24,155.2,6.443]
[1729093655582,6.4421,155.23,155.19,16.1087]
[1729093656389,6.4425,155.22,155.19,16.1087]
[1729093656886,6.4429,155.21,155.17,30.221284]
[1729093657195,6.4426,155.22,155.17,30.221284]
[1729093657397,16.1024,155.26,155.17,30.221284]
[1729093657569,6.4429,155.21,155.17,30.221284]
[1729093657763,6.4425,155.22,155.18,6.444]
[1729093659303,16.1024,155.26,155.17,23.776884]
[1729093659585,6.4422,155.23,155.19,6.4434]
[1729093663796,6.4429,155.21,155.18,16.1094]
[1729093664008,16.1046,155.24,155.15,16.1127]
[1729093664291,31.3501,155.22,155.12,16.1164]
[1729093664496,4.81331631,155.21,155.12,22.5627]
[1729093664790,6.4446,155.17,155.13,6.4461]
[1729093664999,31.3501,155.22,155.1,15.6746]
[1729093665199,6.4439,155.19,155.14,22.5596]
[1729093665496,6.4441,155.18,155.14,22.5596]
[1729093665799,6.4441,155.18,155.11,24.7580974]
[1729093665800,16.1086,155.2,155.12,23.776884]
[1729093666095,6.4446,155.17,155.12,30.223084]
[1729093666285,15.243,155.22,155.12,23.776884]
[1729093666499,6.4439,155.19,155.14,6.4454]
[1729093666670,6.4439,155.19,155.14,23.776884]
[1729093666870,6.4439,155.19,155.15,6.4452]
[1729093667489,6.4434,155.2,155.16,6.4448]
[1729093667902,6.4434,155.2,155.15,22.5582]
[1729093668082,6.4438,155.19,155.15,22.5582]
[1729093668468,15.243,155.22,155.15,16.113]
[1729093668469,6.4441,155.18,155.15,16.113]
[1729093669399,6.4445,155.17,155.13,30.222984]
[1729093669586,6.4441,155.18,155.14,6.4457]
[1729093670497,6.4451,155.16,155.12,22.5624]
[1729093672197,16.1101,155.19,155.11,23.776884]
[1729093672405,6.4454,155.15,155.11,6.4469]
[1729093672609,6.4454,155.15,155.11,6.447]
[1729093672778,6.4459,155.14,155.1,30.224184]
[1729093673298,6.4468,155.12,155.08,7.0684612]
[1729093673796,6.4468,155.12,155.08,0.6205612]
[1729093674380,6.4468,155.12,155.08,7.0687612]
[1729093675984,16.5495,155.16,155.09,6.4476]
[1729093676196,6.4454,155.15,155.11,6.4466]
[1729093676491,16.5495,155.16,155.08,0.6205612]
[1729093676492,6.4463,155.13,155.08,7.0685612]
[1729093676877,6.4463,155.13,155.09,6.4478]
[1729093677199,6.4457,155.15,155.09,39.895984]
[1729093677405,15.7235,155.2,155.11,16.1172]
[1729093677701,6.4454,155.15,155.11,16.1172]
[1729093678199,16.1118,155.17,155.08,23.1891612]
[1729093678409,6.4466,155.12,155.08,23.1891612]
[1729093680198,6.4471,155.11,155.08,0.6205612]
[1729093682385,6.4477,155.1,155.08,0.6205612]
[1729093682899,22.744,155.15,155.08,0.6205612]
[1729093683213,6.4478,155.09,155.08,0.6205612]
[1729093683584,21.8099,155.09,155.08,0.6205612]
[1729093683789,27.8512,155.09,155.08,0.6205612]
[1729093684093,27.8512,155.09,154.97,6.4525]
[1729093684094,45.280284,155.09,154.97,6.4525]
[1729093684417,23.776884,155.08,154.97,6.4525]
[1729093685084,6.4513,155.01,154.96,22.5858]
[1729093685304,6.4518,155.0,154.96,16.1327]
[1729093686193,6.452,154.99,154.94,6.454]
[1729093686389,6.452,154.99,154.93,23.2111612]
[1729093686595,16.4449,155.02,154.93,16.7567612]
[1729093687205,16.4449,155.02,154.95,16.1335]
[1729093687408,22.8957,155.02,154.97,6.4528]
[1729093687994,6.6231,155.01,154.93,0.6205612]
[1729093688196,6.6231,155.01,154.95,6.4534]
[1729093688402,6.6231,155.01,154.94,6.454]
[1729093688403,6.4519,155.0,154.94,6.454]
[1729093688606,6.6231,155.01,154.93,7.0749612]
[1729093688814,6.4525,154.98,154.93,7.0749612]
[1729093689386,6.6231,155.01,154.94,6.454]
[1729093689587,6.6231,155.01,154.93,0.6205612]
[1729093689806,6.4524,154.98,154.93,7.0749612]
[1729093691112,22.896,155.02,154.97,6.4528]
[1729093691502,6.4512,155.01,154.96,6.4531]
[1729093691706,6.4516,155.0,154.95,6.4536]
[1729093692720,12.5333,155.05,155.0,6.4515]
[1729093692908,6.4503,155.04,154.97,16.1317]
[1729093693320,6.4503,155.04,155.0,6.4515]
[1729093693625,15.5008,155.06,155.02,6.4504]
[1729093693824,6.4691,155.09,155.01,24.7580974]
[1729093693993,6.4482,155.09,155.04,6.4496]
[1729093695031,21.9483,155.1,155.05,6.4494]
[1729093695228,6.4475,155.1,155.05,6.4494]
[1729093695428,6.4691,155.13,155.03,16.1254]
[1729093695429,6.4691,155.13,155.06,16.1222]
[1729093695721,6.4477,155.1,155.06,16.1222]
[1729093696298,6.4469,155.12,155.06,16.1222]
[1729093696523,6.4691,155.13,155.06,16.1222]
[1729093696693,6.4691,155.13,155.03,31.2664974]
[1729093696694,6.4691,155.13,155.05,6.4494]
[1729093696894,6.4475,155.1,155.05,6.4494]
[1729093697910,6.4479,155.09,155.05,6.4494]
[1729093698301,6.4479,155.09,155.03,29.0841]
[1729093698501,6.4484,155.08,155.03,22.5757]
[1729093699622,5.9484,155.08,155.03,22.5757]
[1729093699797,6.4487,155.07,155.03,22.5757]
[1729093700003,6.4483,155.08,155.03,22.5757]
[1729093701500,6.4483,155.08,155.0,32.257]
[1729093701501,6.4691,155.13,155.06,22.5713]
[1729093702405,6.4474,155.1,155.06,22.5713]
[1729093702602,6.4479,155.09,155.03,16.1254]
[1729093703000,16.1178,155.11,154.99,31.1272974]
[1729093703223,6.4494,155.06,155.01,6.4508]
[1729093704139,32.1066,155.08,155.0,16.1288]
[1729093704298,6.4499,155.04,155.0,16.1288]
[1729093704501,6.4498,155.05,155.0,22.5804]
[1729093704701,6.4499,155.04,155.0,22.5804]
[1729093705106,6.4499,155.04,155.0,16.1288]
[1729093705829,6.4503,155.03,154.98,6.4523]
[1729093706404,6.4503,155.03,154.97,16.1315]
[1729093706611,6.4503,155.03,154.99,6.4519]
[1729093708218,15.9852,155.08,155.02,6.4507]
[1729093708409,6.449,155.07,155.02,6.4507]
[1729093708608,6.4489,155.07,155.03,6.4502]
[1729093710025,6.4489,155.07,155.02,6.4506]
[1729093710816,6.4475,155.1,155.05,6.4491]
[1729093711014,16.2879,155.12,155.03,22.5757]
[1729093712518,32.4048,155.12,155.03,16.1255]
[1729093712716,6.4473,155.11,155.05,16.1234]
[1729093712918,16.2879,155.12,155.05,16.1234]
[1729093712919,6.4474,155.1,155.05,16.1234]
[1729093713433,6.4474,155.1,155.05,22.5728]
[1729093714135,16.2879,155.12,155.03,6.4502]
[1729093714344,6.4489,155.07,155.03,6.4502]
[1729093715030,6.4489,155.07,155.02,37.7535]
[1729093715031,6.4489,155.07,155.02,22.5155]
[1729093715237,6.4489,155.07,155.02,22.577]
[1729093716329,6.4489,155.07,155.03,6.4502]
[1729093716524,16.118,155.11,155.02,16.1263]
[1729093716525,6.4491,155.06,155.02,22.577]
[1729093716722,6.4487,155.07,155.02,22.577]
[1729093716936,6.4487,155.07,155.03,6.4502]
[1729093717431,6.4484,155.08,155.04,6.4498]
[1729093718329,6.4479,155.09,155.05,6.4493]
[1729093719344,16.2879,155.12,155.06,6.4488]
[1729093719648,6.4473,155.11,155.03,24.7580974]
[1729093719834,6.4466,155.12,155.08,6.4482]
[1729093720031,15.7189,155.16,155.07,24.7580974]
[1729093720241,32.3127,155.22,155.07,24.7580974]
[1729093720242,6.4453,155.15,155.11,6.4466]
[1729093720625,6.4448,155.17,155.12,6.4462]
[1729093721847,31.8275,155.2,155.12,6.4462]
[1729093722150,6.4459,155.14,155.1,16.1182]
[1729093722330,6.4454,155.15,155.1,22.5653]
[1729093723038,31.8275,155.2,155.1,16.1182]
[1729093723237,4.79527131,155.19,155.12,6.4464]
[1729093723436,31.8275,155.2,155.12,6.4464]
[1729093723628,6.4452,155.16,155.11,6.4469]
[1729093724950,15.7189,155.2,155.09,24.7580974]
[1729093725161,6.4441,155.18,155.12,16.1161]
[1729093725325,6.4449,155.17,155.12,22.5624]
[1729093725651,15.7189,155.2,155.07,24.7580974]
[1729093725833,22.1814,155.11,155.02,16.1266]
[1729093726038,6.4489,155.07,155.03,30.0]
[1729093726239,6.4491,155.06,155.03,30.0]
[1729093726442,6.4491,155.06,155.02,16.1266]
[1729093726757,6.4487,155.07,155.02,22.5773]
[1729093727253,6.4483,155.08,155.03,6.45]
[1729093732672,6.4487,155.07,155.03,6.45]
[1729093736541,6.4487,155.07,155.02,22.5772]
[1729093737242,6.4487,155.07,155.03,6.4503]
[1729093740172,6.4493,155.06,155.02,16.1266]
[1729093740377,6.4493,155.06,155.02,22.5773]
[1729093741065,6.4493,155.06,154.98,15.562]
[1729093741066,6.4503,155.03,154.99,22.5813]
[1729093741270,16.1212,155.08,154.99,16.1294]
[1729093741438,6.4507,155.02,154.99,16.1294]
[1729093741644,16.1212,155.08,154.96,16.1328]
[1729093741645,6.4519,155.0,154.96,16.1328]
[1729093741857,16.1255,155.04,154.96,22.586]
[1729093742054,6.4509,155.02,154.96,16.1328]
[1729093742273,6.4506,155.03,154.98,6.4521]
[1729093742477,16.2693,155.06,154.98,6.4521]
[1729093743150,16.2693,155.06,154.95,24.7580974]
[1729093743341,16.2693,155.06,154.98,16.1305]
[1729093743543,6.63743325,155.08,155.05,6.4493]
[1729093743847,6.4474,155.1,155.06,6.449]
[1729093744039,6.4466,155.12,155.07,6.4483]
[1729093744771,37.96725744,155.16,155.06,16.1222]
[1729093744772,6.4463,155.13,155.09,6.4478]
[1729093745068,6.4463,155.13,155.08,6.4479]
[1729093745855,31.332,155.16,155.06,16.1222]
[1729093746065,6.447,155.11,155.07,6.4486]
[1729093746362,6.4466,155.12,155.07,6.4486]
[1729093746564,6.4466,155.12,155.06,16.1222]
[1729093746565,6.4466,155.12,155.08,6.4482]
[1729093747476,31.332,155.16,155.06,22.5709]
[1729093747665,6.4477,155.1,155.06,16.1222]
[1729093748150,6.4482,155.09,155.04,6.4496]
[1729093749371,6.4474,155.1,155.06,6.449]
[1729093749571,15.2191,155.16,155.05,24.7580974]
[1729093749769,6.4463,155.13,155.08,6.4478]
[1729093750075,16.1141,155.15,155.05,24.7580974]
[1729093750243,16.1141,155.15,155.04,22.5739]
[1729093750244,6.4481,155.09,155.04,22.5739]
[1729093750446,6.4481,155.09,155.05,6.4494]
[1729093753053,15.3191,155.16,155.04,16.1243]
[1729093753373,6.4484,155.08,155.04,16.1243]
[1729093753568,6.4484,155.08,155.04,22.5739]
[1729093753774,6.4478,155.1,155.05,6.4494]
[1729093754867,6.4478,155.09,155.05,6.4494]
[1729093755849,6.4485,155.08,155.04,22.5741]
[1729093756762,6.448,155.09,155.04,22.5741]
[1729093757458,15.3191,155.16,155.06,16.1219]
[1729093757459,31.3316,155.16,155.06,16.1219]
[1729093757660,6.447,155.11,155.06,22.5708]
[1729093757866,6.4477,155.1,155.06,22.5708]
[1729093760200,6.4463,155.13,155.09,6.4475]
[1729093762360,6.4459,155.14,155.09,23.776884]
[1729093762565,6.4454,155.15,155.11,6.4469]
[1729093762872,15.2191,155.16,155.12,6.4466]
[1729093762873,21.6641,155.16,155.12,6.4466]
[1729093763060,6.445,155.16,155.12,6.4466]
[1729093763568,32.1141,155.2,155.11,6.4469]
[1729093763569,6.4454,155.15,155.11,6.4469]
[1729093764169,32.1141,155.2,155.13,16.1155]
[1729093764498,4.80942321,155.19,155.13,24.7580974]
[1729093764782,6.4432,155.21,155.16,6.4448]
[1729093764955,6.4432,155.21,155.15,16.113]
[1729093764956,22.4471,155.24,155.19,6.4437]
[1729093765163,22.4471,155.24,155.18,16.1101]
[1729093765164,4.80809449,155.23,155.2,6.4432]
[1729093765481,6.4413,155.25,155.2,6.4432]
[1729093765984,11.24651528,155.24,155.2,6.4432]
[1729093766292,6.4417,155.24,155.19,6.4436]
[1729093767389,6.4428,155.22,155.18,16.1101]
[1729093770168,32.4776,155.28,155.19,6.4436]
[1729093770394,6.4419,155.24,155.2,6.4432]
[1729093770586,6.4413,155.25,155.21,6.4428]
[1729093770893,6.4408,155.26,155.21,6.4428]
[1729093771391,6.4408,155.26,155.21,23.776884]
[1729093771566,6.4408,155.26,155.22,6.4424]
[1729093771766,6.4408,155.26,155.21,30.219584]
[1729093773289,6.4405,155.27,155.21,23.776884]
[1729093774202,16.0973,155.31,155.21,23.776884]
[1729093774369,16.0973,155.31,155.19,40.2459974]
[1729093774370,6.4404,155.27,155.23,6.4419]
[1729093774879,6.4399,155.29,155.24,30.218384]
[1729093775073,16.1077,155.32,155.24,23.776884]
[1729093775274,6.4392,155.3,155.26,6.4406]
[1729093776170,6.4388,155.31,155.27,23.776884]
[1729093776365,6.4383,155.32,155.28,6.4399]
[1729093776594,6.438,155.33,155.29,23.776884]
[1729093776772,6.4377,155.34,155.29,30.215984]
[1729093776964,39.2393,155.37,155.29,30.215984]
[1729093777289,39.2393,155.37,155.29,23.776884]
[1729093777473,6.438,155.33,155.29,23.776884]
[1729093777791,39.2393,155.37,155.29,23.776884]
[1729093777792,6.4374,155.35,155.31,6.4387]
[1729093778091,16.0881,155.4,155.32,23.776884]
[1729093778284,6.4363,155.37,155.32,30.215084]
[1729093778966,6.4367,155.36,155.32,30.215084]
[1729093779301,6.4367,155.36,155.28,23.776884]
[1729093779302,6.4383,155.32,155.28,23.776884]
[1729093779477,6.4383,155.32,155.23,32.43479]
[1729093779478,16.0922,155.36,155.23,30.9260974]
[1729093779678,6.4394,155.3,155.25,6.4411]
[1729093780389,16.0922,155.36,155.27,6.4401]
[1729093780572,6.4387,155.31,155.26,22.5422]
[1729093780775,6.4387,155.31,155.27,23.776884]
[1729093781178,6.4394,155.3,155.27,23.776884]
[1729093783199,6.4388,155.31,155.27,30.217184]
[1729093783704,6.4388,155.31,155.27,23.776884]
[1729093783876,6.44,155.28,155.23,47.3041974]
[1729093784210,6.44,155.28,155.24,30.218484]
[1729093786473,6.4396,155.29,155.24,30.218484]
[1729093786680,6.4388,155.31,155.26,23.776884]
[1729093786894,22.4047,155.34,155.27,6.4403]
[1729093787199,6.4382,155.33,155.29,6.4394]
[1729093787402,6.4382,155.33,155.28,23.776884]
[1729093787403,6.4377,155.34,155.28,23.776884]
[1729093788517,6.4377,155.34,155.3,23.776884]
[1729093790575,6.4387,155.31,155.27,28.7946]
[1729093790776,6.4402,155.28,155.24,22.545]
[1729093791189,6.4394,155.3,155.26,6.4406]
[1729093791390,6.4387,155.32,155.27,6.44]
[1729093791596,6.4387,155.31,155.27,6.44]
[1729093792582,6.4398,155.29,155.25,6.4409]
[1729093792775,6.4396,155.29,155.24,6.4413]
[1729093793203,6.4406,155.27,155.23,16.1046]
[1729093794697,6.4398,155.29,155.24,30.218084]
[1729093795033,16.5028,155.31,155.24,30.218084]
[1729093795306,6.4401,155.28,155.24,23.776884]
[1729093795916,6.4401,155.28,155.24,30.218384]
[1729093799594,6.4393,155.3,155.27,23.776884]
[1729093799999,6.439,155.31,155.27,23.776884]
[1729093800321,13.06670663,155.36,155.28,23.776884]
[1729093800609,32.236,155.41,155.33,23.776884]
[1729093800923,6.4367,155.36,155.33,23.776884]
[1729093801410,6.4363,155.37,155.32,23.776884]
[1729093801611,32.236,155.41,155.34,30.213984]
[1729093801612,16.1489,155.41,155.34,30.213984]
[1729093801794,6.4357,155.39,155.34,30.213984]
[1729093802190,6.4351,155.4,155.35,6.4368]
[1729093802521,16.084,155.44,155.35,6.4368]
[1729093802522,6.62737384,155.44,155.38,23.776884]
[1729093802693,6.4336,155.44,155.39,6.4353]
[1729093803210,7.0533612,155.46,155.41,6.4345]
[1729093803606,6.4329,155.45,155.38,39.866384]
[1729093803814,0.6205612,155.46,155.41,16.0864]
[1729093804015,0.6205612,155.46,155.42,23.776884]
[1729093804218,0.6205612,155.46,155.44,6.4329]
[1729093804513,0.6205612,155.46,155.45,30.209784]
[1729093805920,0.6205612,155.46,155.45,30.435274]
[1729093806395,0.6205612,155.46,155.45,50.435274]
[1729093807805,0.6205612,155.46,155.45,23.776884]
[1729093808002,0.6205612,155.46,155.44,22.5162]
[1729093808424,0.6205612,155.46,155.45,6.4329]
[1729093809021,7.0532612,155.46,155.41,6.4345]